Cogmind - Beta 13 @@@ ROGUE MODE // 2024.06.01 @ 10:10:43 Player: tauceti Result: Destroyed by Autobeam Turret with Autobeam Performance ------------- Evolutions (0) 0 Regions Visited (2) 400 Robots Destroyed (30) 150 Value Destroyed (762) 762 Prototype IDs (10) 200 Alien Tech Used (0) 0 Bonus (22) 22 TOTAL SCORE: 1534 Bonus ------- Follower Combat Kills 25 Friendly Fire -3 Cogmind --------- Core Integrity 0/250 Matter 269/300 Energy 178/180 System Corruption 0% Temperature Cool (7) Movement Treading (240) Ox1 Location -10/Subcaves Parts ------- > --- POWER (1) -------- Meta Core > --- PROPULSION (2+1) - Light Treads > --- UTILITY (2+1) ---- Large Storage Unit Signal Interpreter > --- WEAPON (2+1) ----- Small Laser Subdweller Machine Gun Dirty Datajack (+) > --- INVENTORY (15) --- Light Nuclear Core Light Treads Light Treads Sensor Array Medium Armor Plating Medium Armor Plating Makeshift Kinetic Plating Makeshift Thermal Plating Subdweller Beam Cannon Dirty Datajack (20) Peak State ------------ > --- POWER ------------ Meta Core > --- PROPULSION ------- Light Treads Spiked Treads > --- UTILITY ---------- Large Storage Unit Signal Interpreter > --- WEAPON ----------- Riot Gun Subdweller Machine Gun Dirty Datajack > --- INVENTORY -------- Light Nuclear Core Light Treads Light Treads Sensor Array Medium Armor Plating Medium Armor Plating Makeshift Kinetic Plating Makeshift Thermal Plating Small Laser Subdweller Beam Cannon Dirty Datajack [Rating: 31] Favorites ----------- Power Light Ion Engine Engine Light Ion Engine Power Core Meta Core Propulsion Light Treads Treads Light Treads Wheel Compact Wheel Utility Large Storage Unit Device Sensor Array Storage Large Storage Unit Processor Signal Interpreter Weapon Medium Laser Energy Gun Medium Laser Energy Cannon Subdweller Beam Cannon Ballistic Gun Subdweller Machine Gun Ballistic Cannon Battle Cannon Special Melee Weapon Dirty Datajack Build | -11 -10 -10 ------- Run | Yrd Mat Sub Slots Evolved . | . . . Power . | . . . Propulsion . | . . . Utility . | . . . Weapon . | . . . Parts Attached 39 | 4 17 18 Power 7 | . 4 3 Engine 5 | . 3 2 Core 2 | . 1 1 Reactor . | . . . Propulsion 9 | 2 4 3 Treads 6 | . 3 3 Leg . | . . . Wheel 3 | 2 1 . Hover . | . . . Flight . | . . . Utility 4 | 1 3 . Device 1 | . 1 . Storage 2 | 1 1 . Processor 1 | . 1 . Hackware . | . . . Protection . | . . . Artifact . | . . . Weapon 19 | 1 6 12 Energy Gun 13 | . 6 7 Energy Cannon 1 | . . 1 Ballistic Gun 2 | 1 . 1 Ballistic Cannon 1 | . . 1 Launcher . | . . . Special Weapon . | . . . Impact Weapon . | . . . Slashing Weapon . | . . . Piercing Weapon . | . . . Special Melee Weapon 2 | . . 2 Unidentified Prototypes . | . . . Parts Lost 13 | . 4 9 Power 2 | . 1 1 Propulsion 3 | . 2 1 Utility . | . . . Weapon 8 | . 1 7 Highest Loss Streak 3 | . 2 3 To Critical Strikes . | . . . Average Slot Usage (%) 89 | . 89 89 Engine 9 | . 12 8 Core 2 | . 1 2 Treads 20 | . 11 25 Wheel 3 | . 11 . Storage 13 | . 14 12 Processor 11 | . 8 12 Energy Gun 15 | . 23 11 Energy Cannon 2 | . . 3 Ballistic Gun 6 | . 4 7 Special Melee Weapon 1 | . . 2 Naked Turns . | . . . Heaviest Build 35 | 7 30 35 Greatest Support 40 | 32 32 40 Greatest Overweight (x) 1 | . 1 1 Average Overweight (x) . | . . . Largest Inventory Capacity 15 | 8 15 15 Average Capacity 14 | 7 14 15 Most Carried 15 | 8 11 15 Average Carried 11 | 5 9 12 Final Capacity 15 | 8 15 15 Final Carried 11 | 8 11 10 Class Distribution -------------------- 85% | Mutant 14% | Scavenger-Mutant Dominant Class ---------------- Mutant | -10/Materials Mutant | -10/Subcaves Resources | -11 -10 -10 ----------- Run | Yrd Mat Sub Matter Collected 746 | 208 237 301 Remotely . | . . . Salvage Created 1138 | . 750 388 Parts 61 | . 34 27 Haulers Intercepted . | . . . Recyclers Shooed 1 | . 1 . Parts Field Recycled . | . . . Retrieved Matter . | . . . Parts Self-Destructed 19 | . . 19 Prevented . | . . . Kills | -11 -10 -10 ------- Run | Yrd Mat Sub Combat Hostiles Destroyed 25 | . 12 13 Melee 3 | . . 3 Guns 18 | . 12 6 Cannons 3 | . . 3 AOE 1 | . . 1 Classes Destroyed 6 | . 4 2 Recycler 4 | . 4 . Watcher 1 | . 1 . Swarmer 9 | . 3 6 Grunt 9 | . 9 . Sentry 2 | . . 2 Subdweller 5 | . . 5 Best Kill Streak 8 | . 8 3 Combat Bots Only 3 | . 3 3 Max Kills in Single Turn 1 | . 1 1 Gunslinging . | . . . Exploded 1 | . . 1 Melee 1 | . . 1 Uniques/NPCs Destroyed . | . . . Combat | -11 -10 -10 -------- Run | Yrd Mat Sub Hostile Shots Fired 193 | . 62 131 Missed 70 | . 18 52 Damage Taken 1574 | . 507 1067 Core 250 | . 115 135 Absorbed by Shields . | . . . Core Remaining (%) 100 | 100 . . Volleys Fired 117 | . 48 69 Largest 2 | . 2 2 Hottest 115 | . 115 115 Shots Fired 204 | . 93 111 Gun 180 | . 93 87 Cannon 24 | . . 24 Launcher . | . . . Special . | . . . Kinetic 89 | . 35 54 Thermal 98 | . 58 40 Explosive . | . . . Electromagnetic 17 | . . 17 Robot Hit Streak 14 | . 11 14 Robot Miss Streak 5 | . 5 3 Penetration Max . | . . . Secondary Targets 3 | . 2 1 Max Gunslinging Chain 1 | . 1 1 Shots Hit Robots 119 | . 65 54 Core Hits 54 | . 30 24 Critical Kills . | . . . Critical Parts Destroyed . | . . . Critical Strikes 5 | . 2 3 Burn 4 | . 2 2 Blast 1 | . . 1 Melee Attacks 12 | . . 12 Impact . | . . . Slashing . | . . . Piercing 12 | . . 12 Sneak Attacks 3 | . . 3 Combat Hostiles 3 | . . 3 Follow-up Attacks . | . . . Damage Inflicted 1718 | . 908 810 Guns 1420 | . 908 512 Cannons 264 | . . 264 Explosions . | . . . Melee 34 | . . 34 Ramming . | . . . Kinetic 676 | . 324 352 Thermal 900 | . 584 316 Explosive . | . . . Electromagnetic 108 | . . 108 Impact . | . . . Slashing . | . . . Piercing 34 | . . 34 Highest Corruption . | . . . Average Corruption . | . . . Corruption Purged . | . . . Corruption Blocked . | . . . Overload Shots . | . . . Overflow Damage . | . . . Projectiles . | . . . Explosions . | . . . Melee . | . . . Knockbacks 1 | . . 1 Impact . | . . . Kinetic 1 | . . 1 Secondary . | . . . Self-Inflicted Damage . | . . . Shots . | . . . Rammed . | . . . Targets Rammed . | . . . Kicked . | . . . Crushed . | . . . Highest Temperature 324 | . 324 7 Average Temperature 118 | . 121 3 Received Heat Transfer 510 | . 246 264 Effects 1 | . 1 . Energy Bleed 1 | . 1 . Siege Activations . | . . . Robots Corrupted . | . . . Combat Hostiles . | . . . Parts Fried . | . . . Impact Corruptions . | . . . Robots Melted . | . . . Combat Hostiles . | . . . Parts Melted 6 | . 3 3 Heat Transferred 2442 | . 1554 888 Parts Sabotaged . | . . . Parts Stolen . | . . . Parts Stripped . | . . . Power Chain Reactions . | . . . Alert | -11 -10 -10 ------- Run | Yrd Mat Sub Peak Influence 215 | . 215 . Initial . | . . . Average 68 | . 71 . Maximum Alert Level 1 | . 1 . Low Security (%) 92 | 100 92 . Level 1 7 | . 7 . Level 2 . | . . . Level 3 . | . . . Level 4 . | . . . Level 5 . | . . . High Security . | . . . Max Security . | . . . Squads Dispatched 1 | . 1 . Investigation 1 | . 1 . Extermination . | . . . Reinforcement . | . . . Assault . | . . . Garrison . | . . . Intercept . | . . . Searches Triggered . | . . . Construction Impeded . | . . . Haulers Reinforced . | . . . Active Scanning Responses . | . . . Cargo Convoy Interrupts . | . . . Stealth | -11 -10 -10 --------- Run | Yrd Mat Sub Distress Signals 3 | . 3 . Communications Jammed . | . . . Distress Signals . | . . . Times Spotted 69 | . 22 47 Peak Tracking Total 6 | . 4 6 Tactical Retreats 7 | . 3 4 Traps | -11 -10 -10 ------- Run | Yrd Mat Sub Traps Triggered 4 | . 4 . Indirectly . | . . . Trap Hack Attempts . | . . . Triggered . | . . . Disarmed . | . . . Reprogrammed . | . . . Reused . | . . . Traps Extracted . | . . . Installed . | . . . Triggered . | . . . Machines | -11 -10 -10 ---------- Run | Yrd Mat Sub Machines Disabled 2 | . 1 1 Max in Single Turn 1 | . 1 1 Machines Repaired . | . . . Machines Dismantled . | . . . Machines Sabotaged . | . . . Overloaded Fab Kills . | . . . Hacking | -11 -10 -10 --------- Run | Yrd Mat Sub Machines Accessed 10 | . 8 2 Terminals 8 | . 8 . Fabricators . | . . . Repair Stations . | . . . Recycling Units . | . . . Scanalyzers . | . . . Garrison Access . | . . . Total Hacks 39 | . 25 14 Successful 30 | . 16 14 Failed 9 | . 9 . Catastrophic . | . . . Database Lockouts . | . . . Manual 25 | . 22 3 Terminals 25 | . 25 . Fabricators . | . . . Repair Stations . | . . . Recycling Units . | . . . Scanalyzers . | . . . Garrison Access . | . . . Terminal Hacks 19 | . 5 14 Record 13 | . . 13 Branch Access Points 1 | . 1 . Terminal Index 1 | . 1 . Unreport Threat 1 | . 1 . Hauler Manifests 1 | . 1 . Zone Layout 1 | . 1 . Derelict Proto ID Bank 1 | . . 1 Fabricator Hacks . | . . . Repair Station Hacks . | . . . Recycling Unit Hacks . | . . . Scanalyzer . | . . . Garrison Access Hacks . | . . . Unauthorized Hacks 11 | . 11 . Terminals 11 | . 11 . Track 3 | . 3 . Botnet 7 | . 7 . Operators 1 | . 1 . Fabricators . | . . . Repair Stations . | . . . Recycling Units . | . . . Scanalyzers . | . . . Garrison Access . | . . . Data Cores Recovered . | . . . Used . | . . . Hacking Detections 5 | . 5 . Full Trace Events 1 | . 1 . Feedback Events . | . . . Feedback Blocked . | . . . Robot Schematics Acquired . | . . . Robots Built . | . . . Authchips . | . . . Time . | . . . Total Robot Build Rating . | . . . Part Schematics Acquired . | . . . Parts Built . | . . . Authchips . | . . . Time . | . . . Total Part Build Rating . | . . . Parts Repaired . | . . . Time . | . . . Parts Recycled . | . . . Recycled Matter . | . . . Retrieved Matter . | . . . Retrieved Components . | . . . Parts Scanalyzed . | . . . Part Schematics Acquired . | . . . Parts Damaged . | . . . Bothacking | -11 -10 -10 ------------ Run | Yrd Mat Sub Used RIF Installer . | . . . Robots Hacked . | . . . Non-combat . | . . . Combat . | . . . Robot Hacks Applied . | . . . Relay Couplers Released . | . . . Fabnet Peak Effective % . | . . . Robots Rewired . | . . . Allies Hacked . | . . . Hacks Repelled . | . . . Allies | -11 -10 -10 -------- Run | Yrd Mat Sub Total Allies 1 | . . 1 Largest Group 1 | . . 1 Highest-Rated Group 16 | . . 16 Highest-Rated Ally 16 | . . 16 Total Orders . | . . . Ally Attacks 1 | . . 1 Total Damage 18 | . . 18 Kills 1 | . . 1 Allies Corrupted . | . . . Allies Melted . | . . . Intel | -11 -10 -10 ------- Run | Yrd Mat Sub Robot Analysis Total . | . . . Derelict Logs Recovered 1 | . . 1 Drone Launches . | . . . Drone Recoveries . | . . . Exploration | -11 -10 -10 ------------- Run | Yrd Mat Sub Turns Passed 4342 | 66 1453 2823 Spaces Moved 2521 | 55 863 1603 Core 6 | 6 . . Treads 1829 | . 226 1603 Legs . | . . . Wheels 686 | 49 637 . Hover . | . . . Flight . | . . . Fastest Speed 50 | 50 100 160 Average Speed 153 | 94 144 160 Slowest Speed 240 | 100 240 240 Overloaded Moves . | . . . Propulsion Burnouts . | . . . Robots Hopped . | . . . Cave-ins Triggered . | . . . Exploration Rate (%) 53 | 5 92 62 Regions Visited 2 Branch Regions 1 Pre-discovered Areas . | . . . Known Exits Taken 1 | . 1 . Unknown Exits Taken 1 | 1 . . Scrap Searched 5 | . . 5 Spaces Dug 1 | . . 1 Terrain Destroyed 3 | . . 3 Melee . | . . . Projectile 3 | . . 3 AOE . | . . . Terrain Rammed . | . . . Walls Destroyed . | . . . Machines Disabled . | . . . Actions | -11 -10 -10 --------- Run | Yrd Mat Sub Total 2786 | 67 973 1746 Wait 50 | . 25 25 Move 2519 | 54 862 1603 Hop . | . . . Pick Up 34 | 9 13 12 Fast Attach 12 | 3 8 1 Attach 17 | 1 6 10 Detach 1 | . 1 . Swap 10 | . 3 7 Drop 14 | . 7 7 Fire 117 | . 48 69 Melee 12 | . . 12 Ram . | . . . Kick . | . . . Crush . | . . . Escape Stasis . | . . . Rewire . | . . . Trap . | . . . Miscellaneous . | . . . Route ------- -11/Scrapyard -10/Materials (discovered 5 exits: *Mat x3 / *Min / *Sub) -10/Subcaves (discovered 2 exits: *Mat x2) History --------- Turn | Location | Event 10 | -11/Scrapyard | Discovered new exit (range 15) 67 | -11/Scrapyard | Entered Materials 319 | -10/Materials | Build established: Mutant 455 | -10/Materials | Discovered new exit (range 8) 671 | -10/Materials | Identified exit to Materials 789 | -10/Materials | Discovered exit to Materials (range 15) 888 | -10/Materials | Discovered new exit (range 8) 896 | -10/Materials | Identified exit to Mines 1132 | -10/Materials | Discovered exit to Materials (range 12) 1494 | -10/Materials | Discovered new exit (range 10) 1518 | -10/Materials | Identified exit to Subcaves 1520 | -10/Materials | Entered Subcaves 1536 | -10/Subcaves | Core integrity fell below 50% 1588 | -10/Subcaves | A swath of the cavern ceiling suddenly collapsed 1673 | -10/Subcaves | Discovered new exit (range 12) 1690 | -10/Subcaves | Learned Materials non-interactive machine intel 1819 | -10/Subcaves | Identified exit to Materials 2228 | -10/Subcaves | Disturbed a concealed Subdweller 2441 | -10/Subcaves | Lost 3 parts (1p2w) 2617 | -10/Subcaves | A swath of the cavern ceiling suddenly collapsed 2694 | -10/Subcaves | Discovered exit to Materials (range 10) 2986 | -10/Subcaves | Build established: Scavenger-Mutant 3501 | -10/Subcaves | Visited 4L-MR0's lab 3528 | -10/Subcaves | Found Meta Core 3529 | -10/Subcaves | Attached Meta Core, gained temporary slots: Propulsion, Utility, Weapon 3606 | -10/Subcaves | Build established: Mutant 4093 | -10/Subcaves | Visited Clippyterm 4098 | -10/Subcaves | Learned Factory trap positions 4098 | -10/Subcaves | Learned Research security intel 4293 | -10/Subcaves | Core integrity fell below 20% 4343 | -10/Subcaves | Destroyed by Autobeam Turret with Autobeam Last Messages --------------- [Achievement: Error 47] 04298_ S-10 Pest destroyed. 04302_ Flight Unit fries itself beyond repair. 04302_ Subatomizers dissect the Lgt. Assault Rifle. 04307_ Sneak attack on S-10 Pest. 04307_ Splicing S-10 Pest... 04307_ S-10 Pest system inaccessible. 04307_ Sneak attack on S-10 Pest. 04307_ Splicing S-10 Pest... 04307_ S-10 Pest system inaccessible. 04308_ Sneak attack on S-10 Pest. 04308_ Splicing S-10 Pest... 04308_ S-10 Pest system inaccessible. 04308_ S-10 Pest destroyed. 04310_ Lgt. Assault Rifle fries itself beyond repair. 04312_ Flight Unit fries itself beyond repair. 04314_ Lgt. Ion Engine fries itself beyond repair. 04315_ Flight Unit fries itself beyond repair. 04328_ Spk. Treads destroyed. 04341_ Destroyed Autobeam. Map ----- +----------------------------------------------------+ | ?????????????????????????????????????????### | | ????????????????????????????????????????## | | ???????????????????????????????????????## | | ???????????????????????????????????????# | | ???????????????????????????????????????## | | ????????????????????????????????????????### # | | ??????????????????????????????????????????## # | | ???????????????????????????????????????????# | | ???????????????????????"? ?????????????????# | | ?????????????????????? " "????????????????# | | ??????????????????????? t t????????????????# | | ??????????????????????? ??????????####### | | ??????????????????????? ?????????## | | ??????????????????????? ????????## | | ????????????????????#### ????????# ### | | ????????????????#??## ???????## ##?# # | | ????????????????? ## ??????## #??## # | | ?????????????????? ####?## ##??# | | ???????????????????? ## ### #??# | | ?????????????????????# ## ## #??# | | ?????????????????????# ## ########??# | | ??????????????????????# ## # #?????????## | | ???????????????????????# ;% # ##???????????### | | ????????????????????#### % #??????????????? | | ???????????????????## % ####??????????????? | | ???????????????????# @%# ##?????????????????? | | ???????????????????## #####??????????????????? | | ????????????????????## ##??????????????????????? | | ?????????????????????####????????????????????????? | | ?????????????????????????????????????????????????? | | ?????????????????????????????????????????????????? | | ?????????????????????????????????????????????????? | | ?????????????????????????????????????????????????? | | ?????????????????????????????????????????????????? | | ?????????????????????????????????????????????????? | | ?????????????????????????????????????????????????? | | ?????????????????????????????????????????????????? | | ?????????????????????????????????????????????????? | | ?????????????????????????????????????????????????? | | ?????????????????????????????????????????????????? | | ?????????????????????????????????????????????????? | | ?????????????????????????????????????????????????? | | ?????????????????????????????????????????????????? | | | | | | | | | | | | | | | +----------------------------------------------------+ Best States ------------- Heat Dissipation 25 Energy Generation 17 Energy Capacity 250 Matter Stores 300 Matter Capacity 300 Sight Range 16 Robot Scan Range 14 Terrain Scan Density 10 Evasion (%) 40 Recoil Reduction 2 Item Schematics ----------------- None Robot Schematics ------------------ None Fabricated ------------ Nothing Alien Tech Used ----------------- None Achievements -------------- Error 47 Factory Defaults Challenges ------------ None Game ------ Seed LinkedBiocellEngine Manual? 0 Play Time 00:33:21 Cumulative 20.7 hours Start 2024.06.01 @ 09:34:41 End 2024.06.01 @ 10:10:43 Sessions 1 Manual Loads 0 Difficulty Rogue Special Mode None Game No. 24 Rogue 19 Adventurer 5 Explorer 0 Win Type - Total 0 Types 0/0/0/0/0/0/0/0/0 Lore% 22 Gallery% 27 Achievement% 23 Wizard Run 0 Options --------- Layout 0 ASCII 0 Keyboard 0 Movement Arrows Keybinds 0 Fullscreen 2 Font 24/Smallcaps Map View 76x56 Zoom Use 0% Tactical HUD 1 Map Filters NONE Filters NONE Steam 1 RUN: 310517d3-831a-491e-b8da-785dd57292e1